bitfinex/quotes_ETHUSD_20260107
["timestamp","ask_amount","ask_price","bid_price","bid_amount"]
[1767758843612,6.12247985,3266.7,3265.9,0.98849479]
[1767758844991,0.002,3266.4,3265.9,0.98849479]
[1767758845914,0.09400196,3266.7,3266.4,0.98849479]
[1767758846103,0.09400196,3266.7,3266.0,0.98849479]
[1767758846104,0.09200196,3266.5,3266.0,0.98849479]
[1767758846490,0.09200196,3266.5,3265.7,0.001]
[1767758846491,1.01293383,3266.5,3265.7,0.001]
[1767758846690,1.01293383,3266.5,3265.7,0.98949479]
[1767758847184,6.1229488,3266.4,3265.7,0.98949479]
[1767758847586,3.0614744,3266.4,3265.7,0.98949479]
[1767758848412,3.06141923,3266.5,3265.8,0.98849479]
[1767758848585,3.06130146,3266.6,3265.8,0.98849479]
[1767758849196,3.06130146,3266.6,3266.0,0.98849479]
[1767758849887,0.09200196,3266.5,3265.7,0.98949479]
[1767758850083,3.98223333,3266.6,3265.7,0.98949479]
[1767758850400,3.15521393,3266.7,3265.9,0.98849479]
[1767758850401,3.15524195,3266.7,3265.9,0.98849479]
[1767758850717,3.15524195,3266.7,3266.1,0.98849479]
[1767758851417,4.45666745,3266.2,3265.3,0.001]
[1767758851712,5.37128097,3265.7,3264.7,0.91305883]
[1767758851915,0.91461352,3265.7,3264.7,0.91305883]
[1767758852812,0.91461352,3265.7,3264.7,0.001]
[1767758852982,0.91461352,3265.6,3264.7,0.001]
[1767758853188,0.91461352,3265.5,3264.7,0.001]
[1767758853520,0.91461352,3265.3,3264.7,0.001]
[1767758854614,0.91461352,3265.3,3264.4,2.71596209]
[1767758854802,0.91461352,3265.3,3264.4,1.80390326]
[1767758855395,3.06234079,3265.5,3264.5,0.94269139]
[1767758855600,3.06234079,3265.5,3264.7,0.91205883]
[1767758855918,0.91461352,3265.4,3264.4,2.71596209]
[1767758856423,0.91461352,3265.4,3264.4,0.91205883]
[1767758856709,0.91461352,3265.4,3264.1,0.91205883]
[1767758857237,0.91461352,3265.4,3264.1,3.97564246]
[1767758857516,0.91461352,3265.2,3264.2,1.30962308]
[1767758858496,0.91461352,3265.2,3264.2,0.91205883]
[1767758859717,7.04000018,3265.1,3264.2,0.91205883]
[1767758862323,0.91461352,3265.0,3263.9,3.86678593]
[1767758862691,0.91461352,3265.0,3264.0,0.91205883]
[1767758863219,0.91461352,3265.0,3264.1,3.06362467]
[1767758863421,0.91461352,3265.0,3264.2,0.30636247]
[1767758864527,3.97749446,3264.9,3264.2,0.30636247]
[1767758865593,0.91461352,3264.8,3264.2,0.30636247]
[1767758866031,0.91461352,3264.8,3263.8,0.91205883]
[1767758866336,0.91461352,3264.8,3263.5,0.91205883]
[1767758866492,0.91461352,3264.6,3263.5,4.77919468]
[1767758866692,0.91461352,3264.6,3263.5,0.803]
[1767758866904,0.91461352,3264.5,3263.6,0.38978925]
[1767758867132,0.91461352,3264.5,3263.5,0.803]
[1767758867342,0.91461352,3264.5,3263.6,0.91205883]
[1767758868507,6.12670014,3264.4,3263.3,3.97740084]
[1767758868708,0.91461352,3264.3,3263.4,0.91205883]
[1767758870598,0.91461352,3264.1,3263.4,0.91205883]
[1767758870797,0.91461352,3264.1,3263.3,0.001]
[1767758871235,1.61878243,3264.1,3263.3,0.001]
[1767758871907,1.61878243,3264.1,3263.3,0.91305883]
[1767758872106,1.61878243,3264.1,3263.3,0.001]
[1767758872107,0.91461352,3264.0,3263.3,0.001]
[1767758872725,0.91461352,3264.0,3263.3,0.91305883]
[1767758873331,3.97833944,3264.0,3263.3,0.91305883]
[1767758874624,0.91461352,3263.9,3263.3,0.001]
[1767758875618,0.803,3264.3,3263.3,0.001]
[1767758875619,1.71761352,3264.7,3263.4,0.94270171]
[1767758875823,0.91461352,3264.6,3263.4,0.91205883]
[1767758876000,0.91461352,3264.6,3263.4,0.94270171]
[1767758876602,0.91461352,3264.6,3263.4,0.91205883]
[1767758877204,7.041126,3264.5,3263.5,0.91205883]
[1767758877403,3.97786976,3264.5,3263.6,1.3096859]
[1767758877632,3.97786976,3264.5,3263.7,0.91205883]
[1767758879338,7.041126,3264.5,3263.7,0.91205883]
[1767758879933,3.97786976,3264.5,3263.7,0.91205883]
[1767758880833,3.06317077,3264.6,3263.8,0.94269796]
[1767758881018,3.06317077,3264.6,3264.0,0.91205883]
[1767758881716,3.06308388,3264.7,3264.0,0.91205883]
[1767758882819,6.12616776,3264.7,3264.0,0.91205883]
[1767758883135,7.07302889,3264.7,3264.0,0.91205883]
[1767758883431,4.00994501,3264.7,3264.0,0.91205883]
[1767758884540,3.06308388,3264.7,3264.1,0.93608863]
[1767758884735,3.0629626,3264.9,3264.1,0.93608863]
[1767758885636,6.1259252,3264.9,3264.1,0.93608863]
[1767758885838,7.07740993,3264.9,3264.1,0.93608863]
[1767758886441,4.01444733,3264.9,3264.1,1.33607498]
[1767758886614,0.95148473,3264.8,3264.1,0.39998635]
[1767758888236,0.95148473,3264.8,3263.7,0.001]
[1767758888643,0.95148473,3264.6,3263.7,0.93708863]
[1767758890714,4.01472909,3264.6,3263.7,4.00105881]
[1767758890911,0.95148473,3264.5,3263.7,0.93708863]
[1767758891725,0.95148473,3264.5,3263.4,3.06424605]
[1767758892053,0.95148473,3264.3,3263.4,4.00033468]
[1767758892255,0.95148473,3264.3,3263.5,0.93608863]
[1767758892614,0.95148473,3264.3,3263.5,4.00027024]
[1767758893245,4.01493355,3264.3,3263.5,4.00027024]
[1767758893442,0.95148473,3264.2,3263.5,0.93608863]
[1767758893839,0.95148473,3264.1,3263.4,3.06426049]
[1767758894536,0.95148473,3264.1,3263.4,4.00034912]
[1767758894747,0.95148473,3264.1,3263.7,0.001]
[1767758895718,0.95148473,3264.1,3263.4,3.06426049]
[1767758896041,0.95148473,3264.1,3263.3,3.06534074]
[1767758896247,0.95148473,3264.0,3263.3,3.06534074]
[1767758897658,0.95148473,3263.9,3263.3,0.001]
[1767758900026,3.06391322,3263.8,3263.3,0.001]
[1767758900227,4.01532066,3263.9,3263.3,0.001]
[1767758900426,0.95148473,3263.8,3263.3,0.001]
[1767758902060,0.95148473,3263.6,3263.3,0.001]
[1767758903829,0.95148473,3263.5,3263.3,0.001]
[1767758904258,4.0157735,3263.4,3263.3,0.001]
[1767758904438,0.95148473,3263.3,3262.5,3.06510458]
[1767758905058,0.95148473,3263.3,3262.5,0.93608863]
[1767758905360,0.70800623,3263.2,3262.5,0.93608863]
[1767758906131,0.95148473,3263.1,3262.4,3.06520946]
[1767758907064,0.95148473,3263.0,3262.3,0.803]
[1767758907268,3.0645863,3263.1,3262.4,0.93608863]
[1767758907560,0.68371443,3263.0,3262.4,0.93608863]
[1767758907744,1.63519916,3263.0,3262.3,0.803]
[1767758907949,0.95148473,3262.9,3262.2,3.06540095]
[1767758908149,0.95148473,3262.9,3262.6,0.001]
[1767758915480,4.01625851,3262.9,3262.6,0.001]
[1767758915661,4.79271433,3262.9,3262.6,0.001]
[1767758918384,0.91752049,3262.8,3262.6,0.001]
[1767758920282,3.98237834,3262.8,3262.6,0.001]
[1767758920450,0.91752049,3262.7,3262.6,0.001]
[1767758920951,0.91752049,3262.7,3261.9,4.04442207]
[1767758921652,0.91752049,3262.7,3262.0,0.97877246]
[1767758923090,3.98255778,3262.7,3262.0,0.97877246]
[1767758923296,3.98255778,3262.7,3261.2,0.97977246]
[1767758923297,0.91752049,3262.6,3261.2,0.97977246]
[1767758923590,0.91752049,3262.6,3261.5,3.06602516]
[1767758924289,0.91752049,3262.6,3261.4,3.06612651]
[1767758924490,0.91752049,3262.4,3261.4,0.97877246]
[1767758924690,0.91752049,3262.4,3261.5,0.97877246]
[1767758925392,3.9828425,3262.3,3261.5,0.97877246]
[1767758925776,7.04816451,3262.3,3261.5,0.97877246]
[1767758925966,3.9828425,3262.3,3261.5,0.97877246]
[1767758926169,0.70480902,3262.2,3261.5,0.97877246]
[1767758926581,0.70480902,3262.2,3261.5,4.04483169]
[1767758926894,0.70480902,3262.2,3261.5,0.97877246]
[1767758927461,3.77026984,3262.2,3261.5,0.97877246]
[1767758928898,0.91752049,3262.1,3261.2,0.001]
[1767758929096,0.91752049,3261.9,3261.2,0.001]
[1767758929445,3.84101805,3262.0,3261.2,0.97977246]
[1767758930483,4.75853854,3262.0,3261.2,0.97977246]
[1767758932381,4.75853854,3262.0,3261.5,0.001]
[1767758932782,0.91752049,3261.9,3261.5,0.001]
[1767758933097,0.47585385,3261.8,3261.5,0.001]
[1767758935099,0.77532512,3262.0,3261.5,0.97977246]
[1767758935406,0.91752049,3262.2,3261.5,0.97977246]
[1767758935773,0.803,3262.3,3261.5,0.97977246]
[1767758936096,0.91752049,3262.4,3261.5,0.97977246]
[1767758936295,0.91752049,3262.4,3261.6,0.97877246]
[1767758936296,3.06522805,3262.4,3261.6,0.97877246]
[1767758936504,0.38682281,3262.3,3261.6,0.97877246]
[1767758936875,3.86816616,3262.5,3261.6,0.97877246]
[1767758937075,3.98259268,3262.6,3261.6,0.97877246]
[1767758937702,0.91752049,3262.5,3261.6,0.97877246]
[1767758937897,0.91752049,3262.5,3261.5,0.001]
[1767758938201,0.91752049,3262.3,3261.5,0.001]
[1767758938616,0.91752049,3262.3,3261.5,0.90771193]
[1767758938989,0.91752049,3262.3,3261.5,1.61173551]
[1767758939188,0.91752049,3262.3,3261.6,0.90671193]
[1767758939703,3.06516243,3262.5,3261.6,0.90671193]
[1767758940292,3.06516243,3262.5,3261.7,0.90671193]
[1767758940905,4.03145303,3262.5,3261.7,0.90671193]
[1767758941314,3.06496942,3262.7,3261.8,0.90671193]
[1767758941315,3.06498893,3262.7,3261.8,0.90671193]
[1767758941611,3.06479914,3262.9,3261.8,0.90671193]
[1767758942492,3.06479914,3262.9,3262.0,0.92397292]
[1767758942699,3.85223827,3262.9,3262.0,0.92397292]
[1767758943206,4.79418142,3262.9,3262.0,0.92397292]
[1767758943818,0.94194315,3262.8,3261.7,0.92397292]
[1767758943993,0.94194315,3262.6,3261.7,0.92397292]
[1767758944196,0.94194315,3262.6,3261.8,3.06578848]
[1767758944397,4.00703765,3262.6,3261.7,3.06583932]
[1767758944594,0.94194315,3262.5,3261.6,3.06593836]
[1767758944802,0.94194315,3262.5,3261.5,0.001]
[1767758945107,0.94194315,3262.2,3261.5,0.001]
[1767758946489,0.94194315,3262.0,3261.5,0.001]
[1767758948499,4.00764105,3261.9,3261.5,0.001]
[1767758948701,0.94194315,3261.8,3261.5,0.001]
[1767758948924,0.94194315,3261.8,3261.2,0.001]
[1767758949130,0.94194315,3261.6,3261.2,0.001]
[1767758950630,0.94194315,3261.4,3261.2,0.001]
[1767758951320,3.0658703,3261.8,3261.2,0.001]
[1767758951724,4.00781345,3261.8,3261.2,0.001]
[1767758951953,0.94194315,3261.7,3261.2,0.001]
[1767758955734,4.81047033,3262.1,3261.5,0.001]
[1767758955940,6.61225487,3262.0,3261.5,0.001]
[1767758956838,3.54665095,3262.0,3261.5,0.001]
[1767758957643,3.06554101,3262.1,3261.5,0.92497292]
[1767758958536,0.803,3262.4,3261.5,0.92497292]
[1767758960048,3.06532201,3262.3,3261.6,0.92397292]
[1767758960412,0.803,3262.4,3261.6,0.92397292]
[1767758960413,3.06526183,3262.4,3261.6,0.92397292]
[1767758960720,3.06526183,3262.4,3261.8,0.92397292]
[1767758961118,3.06515642,3262.5,3261.8,0.92397292]
[1767758961653,3.064976,3262.7,3261.8,0.92397292]
[1767758961876,3.86788582,3262.8,3261.8,0.92397292]
[1767758962017,3.06477327,3262.9,3261.9,3.0656979]
[1767758962218,6.12954654,3262.9,3262.1,0.92397292]
[1767758962848,3.06477327,3262.9,3262.1,0.92397292]
[1767758963222,6.12954654,3262.9,3262.1,0.92397292]
[1767758964258,6.12954654,3262.9,3262.1,0.90960366]
[1767758965440,3.06477327,3262.9,3262.1,0.90960366]
[1767758965645,3.06477327,3262.9,3262.1,1.34702934]
[1767758965843,3.06477327,3262.9,3262.2,0.92397292]
[1767758966346,3.06466441,3263.0,3262.2,0.92397292]
[1767758966533,4.00660756,3263.0,3262.2,0.92397292]
[1767758966974,7.07128465,3263.0,3262.2,0.92397292]
[1767758967150,4.00660756,3263.0,3262.2,0.92397292]
[1767758967355,4.00660756,3263.0,3262.3,0.92397292]
[1767758967553,7.07128465,3263.0,3262.3,0.92397292]
[1767758967946,0.002,3262.6,3262.3,0.92397292]
[1767758969554,0.002,3262.6,3262.0,0.92397292]
[1767758969727,0.002,3262.6,3261.7,3.46496648]
[1767758969728,0.94194315,3262.5,3261.7,3.46496648]
[1767758969928,0.94194315,3262.5,3261.9,3.06563252]
[1767758970560,0.94194315,3262.5,3261.8,0.79369496]
[1767758970856,0.94194315,3262.4,3261.7,3.46490468]
[1767758971967,3.06708499,3262.6,3261.9,0.99630669]
[1767758973249,0.92612378,3262.6,3261.7,0.39910389]
[1767758973459,0.92612378,3262.6,3261.7,4.06213702]
[1767758973661,0.92612378,3262.6,3261.5,0.99730669]
[1767758973962,0.92412378,3262.4,3261.5,0.99730669]
[1767758975259,6.13064402,3262.3,3261.5,0.99730669]
[1767758976668,7.0547678,3262.3,3261.5,0.99730669]
[1767758977165,0.92412378,3262.1,3261.5,0.001]
[1767758977465,0.70547678,3262.2,3261.2,0.99730669]
[1767758977466,0.92412378,3261.9,3261.2,0.001]
[1767758977768,7.05533162,3262.0,3261.2,0.99730669]
[1767758978358,0.92412378,3261.9,3261.2,0.001]
[1767758980667,0.92412378,3261.9,3261.5,0.001]
[1767758983464,0.39917277,3261.9,3261.5,0.99730669]
[1767758990353,0.002,3262.1,3261.5,0.99730669]
[1767758990354,3.06753033,3262.1,3261.5,0.99730669]
[1767758990964,0.002,3262.1,3261.5,0.99730669]
[1767758991277,0.002,3262.1,3261.6,0.98471133]
[1767758995393,0.91455769,3262.1,3261.5,0.001]
[1767758997040,3.98010475,3262.1,3261.5,0.001]
[1767758997160,0.35078106,3262.0,3261.5,0.001]
[1767758998808,0.002,3262.1,3261.5,0.92463502]
[1767758999095,3.06751294,3262.1,3261.5,0.92463502]
[1767758999293,0.91455769,3262.1,3261.5,0.92463502]
[1767758999465,0.91455769,3262.1,3261.5,0.001]
[1767759001202,3.97816161,3262.0,3261.5,0.001]
[1767759001395,0.70456762,3261.9,3261.5,0.001]
[1767759002398,3.06751922,3262.1,3261.5,0.92463502]
[1767759002399,0.002,3262.1,3261.5,0.92463502]
[1767759002600,0.98417674,3262.0,3261.5,0.001]
[1767759002973,0.98417674,3262.0,3260.3,3.0671323]
[1767759003184,0.98417674,3262.0,3259.7,9.29579907]
[1767759003185,0.97321724,3261.6,3260.4,1.26101933]
[1767759003388,0.97321724,3261.6,3260.5,0.92363502]
[1767759003588,0.97321724,3261.6,3260.6,0.92363502]
[1767759004775,0.97321724,3261.6,3260.3,0.92363502]
[1767759004971,0.97321724,3261.4,3260.4,0.92363502]
[1767759005500,0.97321724,3261.4,3260.4,3.99074335]
[1767759005704,0.97321724,3261.4,3260.6,0.92363502]
[1767759005999,0.97321724,3261.4,3260.6,0.92463502]
[1767759007110,4.03947916,3261.3,3260.6,0.92463502]
[1767759007805,0.97321724,3261.2,3260.6,0.92463502]
[1767759008006,0.97321724,3261.2,3260.6,0.001]
[1767759008507,0.97321724,3261.1,3260.6,0.001]
[1767759009775,0.97321724,3261.0,3260.6,0.001]
[1767759009988,0.97321724,3261.0,3260.3,0.92363502]
[1767759010697,0.97321724,3261.0,3260.2,3.06726214]
[1767759011202,0.97321724,3261.0,3260.2,3.99090871]
[1767759011503,1.37718542,3260.9,3260.2,3.99090871]
[1767759011704,1.37718542,3260.9,3260.1,3.06737413]
[1767759011705,0.97321724,3260.8,3260.1,3.06737413]
[1767759011905,0.97321724,3260.8,3260.0,3.99107921]
[1767759012103,0.97321724,3260.8,3259.7,0.92363502]
[1767759012679,0.97321724,3260.8,3259.8,3.06760132]
[1767759013008,0.97321724,3260.6,3259.8,3.06760132]
[1767759013309,0.97321724,3260.6,3259.7,3.99136248]
[1767759014108,0.97321724,3260.5,3259.7,3.99136248]
[1767759017313,0.97321724,3260.5,3259.7,3.06772746]
[1767759017514,0.97321724,3260.4,3259.7,3.06772746]
[1767759017712,0.97321724,3260.8,3260.4,0.0179273]
[1767759017913,3.06673394,3260.8,3260.4,0.0179273]
[1767759018211,0.97321724,3261.0,3260.4,0.0179273]
[1767759018417,0.97321724,3260.9,3260.4,0.0179273]
[1767759018579,1.68384933,3260.9,3260.4,0.0179273]
[1767759019013,0.97321724,3261.5,3260.4,0.94156232]
[1767759019215,0.97321724,3261.5,3260.6,0.92363502]
[1767759020407,4.03934373,3261.5,3260.6,3.99051573]
[1767759021216,0.97321724,3261.5,3260.7,0.92363502]
[1767759021711,0.002,3261.6,3260.7,0.92363502]
[1767759021919,0.002,3261.6,3260.8,0.92363502]
[1767759022483,0.002,3261.6,3260.9,3.06663804]
[1767759023324,0.97521724,3261.6,3260.8,0.92363502]
[1767759024430,0.97521724,3261.6,3260.4,0.0179273]
[1767759024636,4.04126664,3261.6,3260.6,0.92363502]
[1767759024811,0.97321724,3261.5,3260.7,1.32269977]
[1767759027908,4.03929509,3261.5,3260.7,4.38951192]
[1767759028435,1.0652192,3261.4,3260.5,3.9905903]
[1767759030229,4.03947916,3261.3,3260.5,3.9905903]
[1767759031202,0.97321724,3261.3,3260.5,3.9905903]
[1767759031505,0.97321724,3261.3,3260.5,3.06695528]
[1767759031706,0.97321724,3261.3,3260.6,0.92344059]
[1767759031907,0.97321724,3261.3,3260.7,0.70574101]
[1767759032107,0.91836367,3261.5,3260.8,0.92344059]
[1767759033110,0.91836367,3261.5,3260.8,3.99016606]
[1767759033747,0.001,3261.2,3260.8,3.99016606]
[1767759033952,0.91836367,3261.4,3260.7,3.77254983]
[1767759034129,1.31699832,3261.4,3260.7,3.06680882]
[1767759037115,1.31699832,3261.4,3260.7,3.99024941]
[1767759037316,0.91836367,3261.4,3260.7,3.99024941]
[1767759037746,0.87699478,3261.4,3260.7,3.99024941]
[1767759040968,0.87699478,3261.4,3260.7,3.06680882]
[1767759041573,0.91836367,3261.3,3260.6,3.06687871]
[1767759041872,0.91836367,3261.3,3260.6,3.9903193]
[1767759042974,3.98463553,3261.3,3260.6,0.92344059]
[1767759044271,0.91836367,3261.3,3260.6,3.99034584]
[1767759045675,3.98464043,3261.3,3260.6,0.92344059]
[1767759045904,3.06627676,3261.3,3260.9,0.002]
[1767759046194,3.986383,3261.6,3260.9,0.92544059]
[1767759046785,0.002,3261.6,3260.9,0.92544059]
[1767759047154,0.002,3261.6,3261.0,0.92344059]
[1767759050082,0.92036367,3261.6,3260.9,0.002]
[1767759051294,0.92036367,3261.6,3260.9,0.70788958]
[1767759051597,0.92036367,3261.6,3260.9,3.77449162]
[1767759054206,0.002,3261.6,3261.0,0.95410603]
[1767759054800,0.002,3261.9,3261.3,0.92344059]
[1767759056211,0.002,3262.1,3261.4,3.0661679]
[1767759056212,0.92036367,3262.1,3261.4,3.0661679]
[1767759056412,0.92036367,3262.1,3261.5,0.61324207]
[1767759057134,0.92036367,3262.1,3261.4,3.0661679]
[1767759060211,0.92036367,3262.1,3261.3,0.001]
[1767759060581,0.002,3262.4,3261.3,0.92444059]
[1767759060931,3.06724253,3262.4,3261.3,0.92444059]
[1767759061086,3.9856062,3262.4,3261.3,0.92444059]
[1767759061290,0.91836367,3262.3,3261.5,0.92344059]
[1767759061485,0.91836367,3262.3,3261.3,0.001]
[1767759061819,1.01036563,3262.3,3261.3,0.001]
[1767759062519,3.06541597,3262.2,3261.3,0.001]
[1767759062711,0.96364331,3262.1,3261.3,0.001]
[1767759064507,3.06533104,3262.3,3261.3,0.9832605]
[1767759064821,3.06728484,3262.4,3261.5,0.9822605]
[1767759064997,4.03092815,3262.4,3261.5,0.9822605]
[1767759065202,7.09621299,3262.4,3261.5,0.9822605]
[1767759066407,4.03092815,3262.4,3261.5,0.9822605]
[1767759066613,0.96364331,3262.3,3261.5,0.9822605]
[1767759070825,4.02897912,3262.3,3261.5,4.04832745]
[1767759070994,4.01297633,3262.3,3261.5,4.04832745]
[1767759071195,4.01297633,3262.3,3261.5,0.9822605]
[1767759071725,7.07831214,3262.3,3261.5,0.9822605]
[1767759071936,7.87594355,3262.3,3261.5,0.9822605]
[1767759072409,0.91394724,3262.2,3261.8,0.001]
[1767759072822,0.002,3262.1,3261.8,0.001]
[1767759073026,0.91394724,3262.0,3261.3,0.97252889]
[1767759073419,0.91394724,3262.0,3261.3,4.0387843]
[1767759073620,0.91394724,3262.0,3261.3,0.97252889]
[1767759075818,0.91394724,3261.8,3261.3,0.001]
[1767759076022,0.91394724,3261.8,3260.9,0.70788958]
[1767759076023,0.91394724,3261.8,3260.9,0.002]
[1767759076333,0.91394724,3261.6,3260.9,0.002]
[1767759077404,0.91394724,3261.6,3260.9,3.09924624]
[1767759078508,0.91394724,3261.6,3260.9,0.002]
[1767759078714,0.91394724,3261.5,3260.9,3.09927807]
[1767759079234,0.09200196,3261.7,3260.9,3.09927807]
[1767759079538,3.15792477,3261.7,3260.9,1.00419527]
[1767759079829,3.15792477,3261.7,3260.9,4.07079309]
[1767759080037,0.09200196,3261.7,3260.9,4.07079309]
[1767759080198,0.09200196,3261.7,3260.9,4.75388654]
[1767759080402,3.97977071,3261.8,3261.0,0.97152889]
[1767759082234,7.04561517,3261.8,3261.0,0.97152889]
[1767759083434,3.97977071,3261.8,3261.0,0.97152889]
[1767759085937,3.06582347,3261.8,3261.1,0.97152889]
[1767759086231,0.001,3261.5,3261.2,0.97352889]
[1767759090306,0.001,3261.5,3261.2,0.002]
[1767759092446,0.9846479,3261.5,3261.2,0.002]
[1767759093942,0.001,3261.5,3261.2,0.002]
[1767759094148,3.06710982,3261.5,3261.2,0.002]
[1767759094444,3.06710982,3261.5,3260.9,0.97315601]
[1767759094445,0.9836479,3261.4,3260.9,0.002]
[1767759096325,4.04985926,3261.4,3260.9,0.002]
[1767759098350,4.04985926,3261.4,3261.2,0.002]
[1767759098571,4.04985926,3261.4,3260.9,0.002]
[1767759098882,7.90085427,3261.4,3260.9,0.002]
[1767759099636,0.9836479,3261.3,3260.9,0.002]
[1767759100446,0.9836479,3261.1,3260.5,0.002]
[1767759100651,0.9836479,3260.8,3259.8,0.97115601]
[1767759100863,0.9836479,3260.6,3259.8,0.97115601]
[1767759102770,0.9836479,3260.6,3259.9,3.06757876]
[1767759103172,0.9836479,3260.6,3259.8,3.06764077]
[1767759104872,0.9836479,3260.5,3259.7,3.06776697]
[1767759105081,0.9836479,3260.5,3259.8,0.97115601]
[1767759105245,0.71175231,3260.5,3259.8,0.97115601]
[1767759106575,1.69540021,3260.5,3259.8,0.97115601]
[1767759106886,4.76247643,3260.5,3259.8,0.97115601]
[1767759107056,5.45684054,3260.4,3259.5,0.002]
[1767759107379,0.9836479,3260.2,3259.5,0.002]
[1767759107675,0.9836479,3260.2,3259.5,0.97315601]
[1767759108476,0.9836479,3260.2,3259.5,0.002]
[1767759109972,7.11842904,3260.1,3259.5,0.002]
[1767759110171,0.9836479,3260.0,3259.1,0.97115601]
[1767759110374,0.9836479,3260.0,3258.4,0.97115601]
[1767759110375,0.7118429,3259.9,3258.4,0.97115601]
[1767759110574,2.4994908,3259.9,3258.8,0.97115601]
[1767759110881,0.9836479,3259.8,3258.8,0.97115601]
[1767759111780,5.5488425,3259.8,3258.8,0.97115601]
[1767759111979,1.07564986,3259.6,3258.5,3.06883873]
[1767759112282,1.07564986,3259.6,3258.6,3.06877491]
[1767759112893,1.07564986,3259.6,3258.7,3.06867955]
[1767759113094,1.06942187,3259.6,3258.4,0.0306899]
[1767759113302,0.9836479,3259.5,3258.4,3.06896226]
[1767759113458,0.9836479,3259.5,3258.5,3.06885225]
[1767759114157,0.9836479,3259.3,3258.5,3.06885225]
[1767759115181,3.9602445,3259.6,3258.6,0.97115601]
[1767759116384,3.9602445,3259.6,3258.8,0.97115601]
[1767759118077,7.02814441,3259.6,3258.8,0.97115601]
[1767759118277,0.80117923,3259.5,3258.8,0.97115601]
[1767759118871,3.06804933,3259.4,3258.8,0.97115601]
[1767759119460,3.86917081,3259.5,3258.8,0.97115601]
[1767759120556,0.09200196,3259.8,3258.9,0.90682291]
[1767759120761,3.06739057,3260.1,3259.1,0.90682291]
[1767759120961,0.804,3260.0,3259.3,0.90682291]
[1767759121189,3.0674868,3260.0,3259.3,0.90682291]
[1767759121361,0.96407117,3260.3,3259.4,0.9375034]
[1767759121362,6.93845958,3260.3,3259.4,0.9375034]
[1767759121565,6.93845958,3260.3,3259.4,0.90682291]
[1767759122595,6.13445958,3260.3,3259.4,0.90682291]
[1767759122786,6.93845958,3260.3,3259.4,0.90682291]
[1767759123171,0.001,3259.9,3259.4,0.90682291]
[1767759123372,0.001,3259.9,3259.4,1.30431626]
[1767759125312,0.001,3259.9,3259.4,0.90682291]
[1767759127714,0.001,3259.9,3259.2,3.06823506]
[1767759128275,0.90696687,3259.9,3259.1,0.92503616]
[1767759128708,0.90696687,3259.9,3258.8,0.92503616]
[1767759129106,0.90596687,3259.7,3258.8,0.92503616]
[1767759129451,3.06786108,3259.6,3258.8,0.92503616]
[1767759129600,0.90596687,3259.5,3258.6,3.99381845]
[1767759130109,0.90596687,3259.5,3258.7,3.99374341]
[1767759130505,0.90596687,3259.5,3258.7,3.06870725]
[1767759131501,0.90596687,3259.4,3258.6,3.06880255]
[1767759133324,0.90596687,3259.4,3258.5,3.06888462]
[1767759133525,0.90596687,3259.3,3258.6,0.39939208]
[1767759133724,0.90596687,3259.3,3258.6,3.46818013]
[1767759138042,3.06899091,3258.4,3257.7,0.87503616]
[1767759140127,4.14590429,3258.5,3257.7,0.87503616]
[1767759142047,0.90596687,3258.4,3257.3,0.92503616]
[1767759142246,1.62745137,3258.3,3257.3,0.92503616]
[1767759142850,1.62745137,3258.3,3257.4,0.92503616]
[1767759143962,1.62745137,3258.3,3257.5,0.92503616]
[1767759144164,3.0691793,3258.2,3257.5,0.92503616]
[1767759147532,0.90596687,3258.1,3257.3,0.92503616]
[1767759147753,1.68254787,3258.1,3257.3,0.92503616]
[1767759148139,1.68254787,3258.1,3257.7,0.002]
[1767759148349,1.68354787,3258.1,3257.7,0.002]
[1767759148549,0.777581,3258.1,3257.7,0.002]
[1767759148764,0.001,3258.1,3257.7,0.92703616]
[1767759149252,3.07028582,3258.1,3257.7,0.92703616]
[1767759149654,3.07028582,3258.1,3257.7,0.002]
[1767759150253,0.001,3258.1,3257.7,0.002]
[1767759152064,0.99618393,3258.1,3257.7,0.002]
[1767759152368,0.40653873,3258.0,3257.7,0.002]
[1767759155677,3.47590896,3258.0,3257.7,0.002]
[1767759156170,0.99518393,3257.9,3257.1,0.93708268]
[1767759156472,0.99518393,3257.9,3256.8,0.93708268]
[1767759156844,0.99518393,3257.9,3256.7,3.07057892]
[1767759157141,6.63728115,3258.0,3256.4,0.93708268]
[1767759157142,0.99518393,3257.7,3256.4,0.93708268]
[1767759157374,0.99518393,3257.5,3256.7,0.93708268]
[1767759157539,0.99518393,3257.5,3256.7,0.9677886]
[1767759157745,0.99518393,3257.8,3256.7,0.93708268]
[1767759158093,0.99518393,3258.0,3256.9,0.93708268]
[1767759158547,0.99518393,3257.9,3256.9,0.54469784]
[1767759158745,0.99518393,3257.9,3256.7,0.03070592]
[1767759159076,0.99518393,3257.9,3256.6,6.17205033]
[1767759159279,0.99518393,3257.9,3256.6,7.10913301]
[1767759159461,0.40654288,3258.0,3256.7,0.93708268]
[1767759159662,4.06459334,3258.0,3256.9,0.93708268]
[1767759159857,0.99518393,3257.9,3256.9,0.93708268]
[1767759160378,3.06940941,3258.0,3256.9,0.93708268]
[1767759160576,6.13881882,3258.0,3256.9,0.93708268]
[1767759160773,3.06940941,3258.0,3256.9,0.93708268]
[1767759161070,3.06940941,3258.0,3257.1,0.93708268]
[1767759161449,3.0702735,3258.1,3257.3,0.93708268]
[1767759161649,0.001,3257.7,3257.3,0.93708268]
[1767759161956,0.001,3257.7,3257.2,0.002]
[1767759162158,0.99618393,3257.7,3257.2,0.002]
[1767759162341,0.001,3257.7,3257.2,0.93908268]
[1767759163350,0.001,3257.7,3257.3,0.03070027]
[1767759163553,0.001,3257.7,3257.3,0.96778295]
[1767759163860,0.001,3257.7,3257.3,0.93708268]
[1767759164375,0.001,3257.7,3257.4,0.93708268]
[1767759164558,0.001,3257.7,3257.2,0.002]
[1767759165976,0.99618393,3257.7,3257.2,0.002]
[1767759166355,0.001,3257.7,3257.2,0.002]
[1767759169683,3.07065036,3257.7,3257.2,0.002]
[1767759169853,0.99518393,3257.6,3257.2,0.002]
[1767759170053,0.41678363,3257.7,3257.2,0.002]
[1767759170291,0.41678363,3257.7,3257.2,0.93908268]
[1767759170489,0.99518393,3257.6,3257.2,0.002]
[1767759171388,0.41678363,3257.7,3257.2,0.002]
[1767759171591,0.65559473,3257.6,3257.2,0.002]
[1767759172693,3.72534605,3257.6,3257.2,0.002]
[1767759173569,6.79509737,3257.6,3256.9,0.002]
[1767759173773,3.06993307,3257.4,3256.9,0.002]
[1767759175199,0.09200196,3257.3,3256.3,3.07091387]
[1767759175385,1.08718589,3257.3,3256.3,4.62220323]
[1767759175574,1.08718589,3257.3,3256.4,0.93708268]